bitfinex-derivatives/quotes_ETHF0:USTF0_20241022
["timestamp","ask_amount","ask_price","bid_price","bid_amount"]
[1729585243338,3.467,2646.0,2645.4,44.0078]
[1729585243624,2.36,2645.8,2645.5,0.37819]
[1729585243936,2.73816,2645.8,2645.5,0.37819]
[1729585244132,2.36,2645.6,2645.4,40.8]
[1729585244328,2.36,2645.6,2645.3,0.37823]
[1729585245232,2.36,2645.4,2645.1,3.58605]
[1729585245728,2.36,2645.4,2645.1,44.38605]
[1729585246325,2.36,2645.4,2645.1,3.58605]
[1729585246725,2.36,2645.4,2645.1,44.38605]
[1729585247431,0.37821,2645.5,2645.1,44.38605]
[1729585247432,2.36,2645.2,2645.1,3.2078]
[1729585247632,0.37828,2645.0,2644.6,0.37832]
[1729585247826,2.36,2644.6,2644.5,3.58614]
[1729585249325,2.36,2644.6,2644.5,3.58615]
[1729585249527,2.36,2644.6,2644.5,3.2078]
[1729585250023,2.36,2644.6,2644.5,3.58615]
[1729585250731,2.36,2644.6,2644.5,3.2078]
[1729585251033,2.73833,2644.6,2644.5,3.2078]
[1729585251631,2.36,2644.6,2644.5,3.58615]
[1729585251938,2.73833,2644.6,2644.5,3.2078]
[1729585253033,2.73833,2644.6,2644.4,3.58616]
[1729585253438,2.73833,2644.6,2644.4,3.2078]
[1729585253734,0.37835,2644.5,2644.4,3.2078]
[1729585253932,2.36,2644.6,2644.4,3.2078]
[1729585254241,2.73834,2644.6,2644.4,3.58616]
[1729585254736,2.73834,2644.6,2644.4,3.2078]
[1729585254941,2.36,2644.6,2644.4,3.2078]
[1729585255640,0.37835,2644.5,2644.4,3.2078]
[1729585256333,3.87534,2644.6,2644.4,3.2078]
[1729585257332,0.37835,2644.5,2644.4,3.2078]
[1729585257836,3.497,2644.6,2644.4,3.2078]
[1729585258033,3.87534,2644.6,2644.4,3.2078]
[1729585258429,3.497,2644.6,2644.4,3.2078]
[1729585259035,4.54844273,2645.1,2644.7,0.37832]
[1729585259036,2.36,2644.8,2644.7,0.37832]
[1729585259229,2.36,2644.8,2644.6,0.37833]
[1729585260528,2.7383,2644.8,2644.5,0.37834]
[1729585260726,4.3448,2645.1,2644.5,0.37834]
[1729585260727,2.36,2644.6,2644.5,0.37834]
[1729585261532,2.36,2644.6,2644.4,3.2078]
[1729585261533,2.73834,2644.6,2644.4,3.2078]
[1729585261835,2.36,2644.6,2644.4,3.2078]
[1729585262041,2.36,2644.6,2644.4,3.58615]
[1729585262338,2.36,2644.6,2644.4,3.2078]
[1729585262640,2.36,2644.6,2644.5,0.37835]
[1729585264233,1.79197477,2644.6,2644.5,0.37835]
[1729585264835,2.36,2644.8,2644.7,0.37831]
[1729585265138,2.36,2644.8,2644.6,0.37832]
[1729585265334,2.36,2644.8,2644.7,0.37832]
[1729585265940,2.36,2644.8,2644.6,0.37832]
[1729585266141,2.36,2644.8,2644.7,0.37832]
[1729585266737,1.137,2645.6,2644.7,6.9886]
[1729585266941,1.137,2645.6,2645.2,3.2078]
[1729585267140,2.36,2645.3,2645.2,3.58604]
[1729585267741,2.36,2645.3,2645.2,3.2078]
[1729585267943,2.36,2645.3,2644.9,3.2078]
[1729585268339,2.36,2645.3,2645.1,0.37825]
[1729585268539,2.36,2645.3,2645.2,0.37825]
[1729585268741,2.36,2645.5,2645.4,0.37821]
[1729585270634,2.36,2645.5,2645.3,0.37822]
[1729585270944,2.36,2645.5,2645.4,0.37822]
[1729585274747,2.36,2645.5,2645.2,3.2078]
[1729585274946,2.73821,2645.5,2645.2,0.37824]
[1729585275740,2.36,2645.3,2645.1,0.37825]
[1729585276346,2.36,2645.3,2644.9,3.2078]
[1729585276544,2.36,2645.0,2644.9,3.2078]
[1729585276741,2.73827,2645.0,2644.9,3.2078]
[1729585276947,6.51907,2645.0,2644.9,3.2078]
[1729585277749,2.73827,2645.0,2644.9,3.2078]
[1729585278155,6.51907,2645.0,2644.9,3.2078]
[1729585278346,9.3486,2645.0,2644.3,3.2078]
[1729585278545,2.36,2644.6,2644.4,0.37835]
[1729585278745,2.36,2644.6,2644.5,0.37835]
[1729585279556,2.36,2644.8,2644.6,0.37833]
[1729585279748,2.36,2644.8,2644.7,0.37832]
[1729585279951,2.36,2645.0,2644.6,3.2078]
[1729585280349,2.36,2645.0,2644.8,0.3783]
[1729585280549,2.36,2645.0,2644.9,0.37829]
[1729585281056,2.36,2645.0,2644.6,3.2078]
[1729585281242,2.36,2645.0,2644.8,0.3783]
[1729585281950,2.36,2645.0,2644.6,3.2078]
[1729585282257,2.36,2645.0,2644.9,0.37829]
[1729585282460,3.467,2645.2,2645.0,0.37827]
[1729585282757,3.467,2645.2,2644.6,3.2078]
[1729585282952,3.467,2645.2,2645.1,0.37826]
[1729585283554,2.36,2645.4,2644.9,3.2078]
[1729585283857,2.36,2645.4,2645.2,3.58603]
[1729585284057,2.36,2645.4,2645.2,3.58604]
[1729585284446,2.73822,2645.4,2645.1,0.37825]
[1729585284853,2.36,2645.4,2645.2,0.37824]
[1729585285251,2.73822,2645.4,2645.1,0.37825]
[1729585285453,1.107,2645.7,2645.0,0.37827]
[1729585285454,2.36,2645.2,2645.0,0.37827]
[1729585285651,2.36,2645.2,2644.9,3.2078]
[1729585285652,2.73825,2645.2,2644.9,3.2078]
[1729585285856,2.73825,2645.2,2644.9,3.58608]
[1729585286057,0.37826,2645.1,2644.9,3.2078]
[1729585286255,2.36,2645.0,2644.8,0.37829]
[1729585286650,2.73828,2645.0,2644.7,0.37831]
[1729585286857,2.73828,2645.0,2644.6,3.2078]
[1729585287058,0.37821,2645.5,2644.9,3.2078]
[1729585287358,2.36,2645.2,2645.0,0.37826]
[1729585288054,2.36,2645.2,2644.9,0.37828]
[1729585288259,2.36,2645.0,2644.9,0.37828]
[1729585290059,2.36,2645.2,2645.1,0.37826]
[1729585290258,2.36,2645.5,2645.4,0.37822]
[1729585290460,2.7382,2645.5,2645.4,0.37822]
[1729585290758,2.36,2645.5,2645.4,0.37822]
[1729585292860,2.36,2645.7,2645.3,3.2078]
[1729585293050,2.36,2645.9,2645.6,3.2078]
[1729585293449,0.37812,2646.1,2645.8,0.37816]
[1729585293651,2.36,2645.9,2645.6,3.2078]
[1729585294053,2.36,2645.9,2645.8,0.37816]
[1729585294361,2.36,2646.1,2646.0,0.37813]
[1729585296662,2.36,2646.1,2645.6,3.2078]
[1729585296863,2.36,2645.7,2645.6,3.2078]
[1729585297059,2.36,2645.7,2645.6,3.58599]
[1729585298358,2.36,2645.7,2645.6,0.37819]
[1729585299456,2.36,2645.9,2645.8,0.37815]
[1729585299972,3.467,2646.2,2645.8,3.2078]
[1729585300270,3.467,2646.2,2646.1,0.37812]
[1729585300765,0.37812,2646.1,2645.9,0.37815]
[1729585300953,3.84511,2646.2,2645.9,0.37815]
[1729585301158,0.37823,2645.3,2645.2,40.8]
[1729585301358,2.36,2645.3,2645.1,0.37826]
[1729585301754,2.36,2645.5,2645.1,0.37826]
[1729585301967,0.37822,2645.4,2645.0,3.58606]
[1729585302262,2.36,2645.2,2645.1,0.37826]
[1729585302566,2.36,2645.2,2644.7,3.2078]
[1729585302965,2.36,2645.2,2645.0,0.37827]
[1729585303166,2.73825,2645.2,2644.9,0.37828]
[1729585303371,2.73825,2645.2,2644.7,3.2078]
[1729585303372,2.73825,2645.2,2644.8,0.3783]
[1729585303567,2.36,2645.2,2645.0,0.37827]
[1729585304365,2.36,2645.2,2645.1,0.37826]
[1729585304864,2.36,2645.2,2645.0,3.2078]
[1729585305063,2.36,2645.2,2645.1,0.37826]
[1729585305263,3.7808,2645.1,2644.6,3.2078]
[1729585305563,2.36,2644.7,2644.6,3.2078]
[1729585305759,2.36,2644.7,2644.4,40.8]
[1729585305969,2.36,2644.7,2644.5,0.37835]
[1729585306162,2.36,2644.7,2644.4,41.17835]
[1729585306357,2.73832,2644.7,2644.3,3.58617]
[1729585306762,2.36,2644.7,2644.3,3.2078]
[1729585307166,2.36,2644.5,2644.3,3.58617]
[1729585308964,2.73832,2644.7,2644.4,0.37835]
[1729585309363,2.73832,2644.7,2644.3,3.2078]
[1729585309562,2.73831,2644.8,2644.3,3.2078]
[1729585309762,2.73831,2644.8,2644.5,0.37834]
[1729585310361,0.37831,2644.8,2644.5,0.37834]
[1729585310565,2.36,2644.7,2644.5,0.37834]
[1729585310761,2.36,2644.7,2644.3,3.2078]
[1729585310965,2.36,2644.9,2644.6,3.2078]
[1729585311161,2.36,2644.9,2644.8,0.3783]
[1729585311567,2.36,2644.9,2644.7,0.37831]
[1729585311758,2.36,2645.0,2644.6,3.2078]
[1729585312159,2.73828,2645.0,2644.6,3.2078]
[1729585312461,2.36,2645.0,2644.6,3.2078]
[1729585312665,2.36,2645.2,2644.6,3.2078]
[1729585312976,2.73825,2645.2,2645.0,0.37827]
[1729585313164,2.36,2645.2,2644.9,3.2078]
[1729585313567,2.36,2645.2,2645.1,0.37826]
[1729585313866,2.36,2645.2,2645.0,0.37827]
[1729585315174,2.73825,2645.2,2644.9,3.58608]
[1729585315565,2.73827,2645.0,2644.9,3.2078]
[1729585315766,2.73828,2645.0,2644.7,0.37831]
[1729585316273,2.36,2645.0,2644.6,3.2078]
[1729585316473,2.36,2645.0,2644.8,0.37829]
[1729585317571,2.73828,2645.0,2644.8,0.37829]
[1729585317961,2.36,2645.0,2644.8,0.37829]
[1729585318166,3.2078,2645.5,2644.9,3.2078]
[1729585318372,2.36,2645.2,2645.0,0.37827]
[1729585318666,0.37826,2645.1,2644.9,3.58608]
[1729585318870,2.36,2645.0,2644.9,3.58608]
[1729585319469,2.36,2645.0,2644.9,3.2078]
[1729585319670,2.73827,2645.0,2644.7,0.37831]
[1729585319866,2.36,2645.0,2644.8,0.37829]
[1729585320376,2.36,2645.0,2644.8,0.3783]
[1729585321276,0.37818,2645.7,2644.9,6.9886]
[1729585321577,2.36,2645.4,2645.2,3.2078]
[1729585321972,2.36,2645.4,2645.3,0.37823]
[1729585324275,2.73823,2645.4,2645.2,3.58604]
[1729585324681,2.36,2645.4,2645.3,0.37823]
[1729585325181,2.73822,2645.4,2645.2,3.58604]
[1729585325477,2.36,2645.4,2645.3,0.37823]
[1729585326582,0.37823,2645.3,2645.1,0.37825]
[1729585326768,2.36,2645.2,2644.9,3.2078]
[1729585326974,0.37826,2645.1,2645.0,0.37827]
[1729585327674,2.36,2645.2,2644.9,3.2078]
[1729585327875,2.36,2645.4,2644.9,3.2078]
[1729585328075,0.37825,2645.2,2645.0,0.37827]
[1729585328677,2.36,2645.2,2644.9,0.37828]
[1729585328873,2.73826,2645.2,2645.0,0.37827]
[1729585329882,0.37826,2645.1,2645.0,0.37827]
[1729585330077,2.36,2645.2,2645.0,0.37827]
[1729585330078,2.73826,2645.2,2645.0,0.37827]
[1729585330283,0.37826,2645.1,2645.0,0.37827]
[1729585330885,0.37824,2645.3,2644.8,3.2078]
[1729585331074,0.37824,2645.3,2645.1,0.37825]
[1729585331684,2.36,2645.6,2645.2,3.2078]
[1729585331879,0.37821,2645.5,2645.3,0.37822]
[1729585332075,0.37821,2645.5,2645.2,3.58604]
[1729585332076,2.36,2645.4,2645.2,3.58604]
[1729585332381,0.37823,2645.3,2645.2,3.2078]
[1729585332688,3.78,2645.3,2644.7,0.37831]
[1729585332979,0.37833,2644.6,2644.5,3.2078]
[1729585336089,0.37833,2644.7,2644.5,3.2078]
[1729585337187,2.36,2644.8,2644.5,3.2078]
[1729585337384,2.73831,2644.8,2644.5,3.58614]
[1729585337580,2.73831,2644.8,2644.5,3.2078]
[1729585337581,0.37832,2644.7,2644.5,3.2078]
[1729585338076,0.37833,2644.6,2644.5,3.2078]
[1729585338880,2.36,2644.6,2644.3,0.37837]
[1729585339080,2.73834,2644.6,2644.3,0.37837]
[1729585339488,2.36,2644.6,2644.2,3.58618]
[1729585339687,0.37836,2644.4,2644.2,3.2078]
[1729585339885,2.36,2644.6,2644.2,3.2078]
[1729585339886,0.37838,2644.3,2644.2,3.2078]
[1729585340084,2.73838,2644.3,2644.0,0.37841]
[1729585340793,0.37839,2644.2,2643.9,3.58622]
[1729585341092,0.37839,2644.2,2644.0,0.37842]
[1729585341885,2.73839,2644.3,2644.0,0.37842]
[1729585342389,0.3784,2644.2,2643.9,3.58622]
[1729585342584,0.37841,2644.1,2643.9,3.58622]
[1729585342984,0.37841,2644.1,2643.9,3.2078]
[1729585343187,0.37841,2644.1,2643.9,3.58622]
[1729585343989,2.36,2644.3,2643.9,3.2078]
[1729585344183,0.37839,2644.2,2644.0,0.37841]
[1729585344384,0.37839,2644.2,2643.9,3.2078]
[1729585344584,0.37839,2644.2,2644.0,0.3784]
[1729585344793,2.73838,2644.3,2644.1,0.3784]
[1729585345001,0.3784,2644.2,2644.0,0.37842]
[1729585345681,0.3784,2644.2,2644.1,0.3784]
[1729585345884,0.3784,2644.2,2644.0,0.37841]
[1729585346489,0.37837,2644.4,2644.2,0.37838]
[1729585346684,2.36,2644.5,2644.3,0.37837]
[1729585346685,0.37836,2644.5,2644.3,0.37837]
[1729585347086,0.37837,2644.4,2644.2,3.58618]
[1729585347497,2.36,2644.5,2644.3,0.37836]
[1729585347498,2.73835,2644.5,2644.3,0.37836]
[1729585348001,3.2078,2644.9,2644.4,0.37835]
[1729585348186,3.2078,2644.9,2644.2,3.2078]
[1729585348187,2.36,2645.1,2644.5,3.2078]
[1729585348393,0.38406885,2645.4,2644.7,0.37832]
[1729585348394,2.36,2644.9,2644.7,0.37832]
[1729585348694,2.36,2644.9,2644.8,0.3783]
[1729585350294,2.36,2644.9,2644.7,0.37831]
[1729585350992,2.7383,2644.9,2644.5,3.2078]
[1729585351191,2.7383,2644.9,2644.6,0.37833]
[1729585351699,2.36,2644.9,2644.8,0.3783]
[1729585352790,2.36,2645.1,2645.0,0.37826]
[1729585353000,2.36,2645.1,2644.8,3.2078]
[1729585353302,2.36,2645.1,2645.0,0.37827]
[1729585353690,2.36,2645.1,2644.9,0.37828]
[1729585354394,2.36,2645.1,2644.5,3.2078]
[1729585354594,2.36,2645.1,2645.0,0.37827]
[1729585354796,2.73826,2645.1,2644.9,0.37828]
[1729585354996,2.73826,2645.1,2644.8,3.5861]
[1729585355391,2.36,2644.9,2644.8,3.2078]
[1729585355597,2.73829,2644.9,2644.8,3.2078]
[1729585355909,2.73829,2644.9,2644.7,0.37831]
[1729585356411,2.36,2644.9,2644.7,0.37831]
[1729585356605,2.36,2644.9,2644.5,3.2078]
[1729585356804,2.36,2644.9,2644.8,0.3783]
[1729585357103,2.36,2644.9,2644.7,0.37831]
[1729585357104,2.7383,2644.9,2644.7,0.37831]
[1729585357811,2.36,2645.1,2644.5,3.2078]
[1729585358013,2.36,2645.1,2645.0,0.37827]
[1729585358219,2.36,2645.1,2644.8,3.2078]
[1729585358220,0.37828,2645.0,2644.9,0.37828]
[1729585358519,2.73827,2645.1,2644.9,0.37828]
[1729585360515,2.36,2645.1,2645.0,0.37827]
[1729585361314,51.23126631,2658.9,2645.0,0.37827]
[1729585361315,3.2078,2646.3,2645.1,0.94566]
[1729585361610,2.36,2646.3,2645.8,3.2078]
[1729585361816,2.36,2646.3,2646.1,0.37811]
[1729585362009,2.36,2646.3,2646.2,0.3781]
[1729585362208,2.36,2646.3,2646.1,0.37811]
[1729585362721,2.36,2646.3,2645.8,3.2078]
[1729585363017,2.36,2646.3,2646.0,0.37812]
[1729585363209,2.36,2646.3,2646.1,3.2078]
[1729585363406,2.36,2646.3,2645.8,3.2078]
[1729585363607,2.36,2646.3,2646.2,0.3781]
[1729585364418,2.36,2646.3,2646.1,3.2078]
[1729585364623,2.36,2646.3,2646.2,0.3781]
[1729585364914,2.36,2646.3,2646.1,3.58591]
[1729585365511,2.36,2646.3,2646.2,0.3781]
[1729585365904,2.36,2646.3,2646.1,3.2078]
[1729585366109,2.36,2646.3,2646.1,3.58591]
[1729585366712,0.37807,2646.5,2646.2,0.3781]
[1729585366914,2.36,2646.3,2646.1,3.2078]
[1729585367117,2.36,2646.3,2646.1,3.58591]
[1729585367615,2.36,2646.3,2646.1,3.2078]
[1729585368109,2.36,2646.3,2646.1,3.58592]
[1729585368909,2.7381,2646.3,2646.1,3.2078]
[1729585369110,2.7381,2646.3,2645.8,3.2078]
[1729585369111,6.1392,2646.3,2645.8,3.2078]
[1729585369311,2.36,2646.0,2645.8,3.58595]
[1729585369511,2.36,2646.0,2645.9,0.37815]
[1729585369909,2.73811,2646.2,2645.9,0.37815]
[1729585370109,2.36,2646.2,2645.9,0.37815]
[1729585370414,2.73811,2646.2,2645.9,0.37815]
[1729585371017,0.37812,2646.1,2645.8,3.58595]
[1729585371218,2.73811,2646.2,2645.9,0.37814]
[1729585371519,0.37812,2646.1,2645.9,0.37814]
[1729585371719,2.36,2646.2,2645.8,3.2078]
[1729585372121,0.37812,2646.1,2645.9,0.37814]
[1729585372317,0.37813,2646.1,2645.8,3.58595]
[1729585372514,0.37813,2646.1,2645.8,3.2078]
[1729585372715,0.37811,2646.2,2645.8,3.2078]
[1729585372921,0.37811,2646.2,2646.0,0.37813]
[1729585373618,0.37812,2646.1,2645.9,0.37814]
[1729585373818,0.37811,2646.2,2646.0,0.37813]
[1729585374824,0.37811,2646.2,2645.9,0.37813]
[1729585375023,0.37811,2646.2,2646.0,0.37813]
[1729585375919,0.37811,2646.2,2645.8,3.2078]
[1729585376125,0.37811,2646.2,2646.0,0.37813]
[1729585376427,0.37811,2646.2,2645.8,3.2078]
[1729585376428,2.36,2646.4,2645.8,3.2078]
[1729585376726,0.3781,2646.3,2646.0,0.37812]
[1729585376921,2.36,2646.4,2646.0,0.37812]
[1729585377223,0.37811,2646.2,2646.0,0.37812]
[1729585377422,2.36,2646.4,2645.8,3.2078]
[1729585377724,0.37809,2646.3,2646.1,0.37811]
[1729585377924,2.73808,2646.4,2646.1,0.37811]
[1729585379822,2.36,2646.4,2645.8,3.2078]
[1729585380121,0.3781,2646.3,2645.8,3.2078]
[1729585380526,0.3781,2646.2,2646.0,0.37813]
[1729585380824,0.37809,2646.3,2645.8,3.2078]
[1729585381028,0.37807,2646.5,2646.2,0.37809]
[1729585381925,0.37805,2646.6,2646.4,0.37807]
[1729585382222,2.36,2646.9,2646.5,0.37805]
[1729585382428,0.37802,2646.8,2646.5,0.37806]
[1729585383427,2.36,2646.9,2646.5,0.37806]
[1729585383630,0.37803,2646.8,2646.5,0.37806]
[1729585384324,0.37803,2646.8,2646.4,3.2078]
[1729585384630,0.37803,2646.8,2646.5,0.37806]
[1729585384928,0.37803,2646.7,2646.5,0.37806]
[1729585385130,0.37803,2646.8,2646.5,0.37806]
[1729585386027,0.37803,2646.7,2646.5,0.37806]
[1729585386224,0.37803,2646.8,2646.5,0.37806]
[1729585388022,2.36,2646.9,2646.5,0.37806]
[1729585388233,0.37803,2646.8,2646.5,0.37806]
[1729585388430,0.37803,2646.8,2646.4,3.2078]
[1729585388630,2.36,2646.7,2646.4,3.2078]
[1729585389226,0.37806,2646.5,2646.4,3.2078]
[1729585390230,0.37806,2646.6,2646.4,3.58587]
[1729585390627,2.73804,2646.7,2646.5,0.37806]
[1729585390826,5.5678,2647.0,2646.4,3.2078]
[1729585391027,0.37801,2646.9,2646.4,3.2078]
[1729585391430,5.5678,2647.4,2646.9,0.37799]
[1729585391725,0.37796,2647.3,2647.0,0.37798]
[1729585391931,0.37795,2647.3,2647.0,0.37798]
[1729585392130,0.37797,2647.2,2647.0,0.37799]
[1729585392522,0.37795,2647.3,2647.0,0.37799]
[1729585392733,0.37795,2647.3,2647.1,0.37797]
[1729585393138,0.37795,2647.3,2647.0,3.2078]
[1729585393335,0.37795,2647.3,2647.0,3.58578]
[1729585394834,3.58574,2647.4,2647.1,0.37797]
[1729585395427,3.58574,2647.4,2647.0,3.58578]
[1729585395428,0.37795,2647.3,2647.0,3.58578]
[1729585396032,0.37795,2647.3,2647.1,0.37797]
[1729585397435,3.2078,2647.6,2647.0,3.2078]
[1729585397738,0.37792,2647.5,2647.2,0.37795]
[1729585397928,0.37792,2647.5,2647.2,0.37796]
[1729585398338,1.192,2647.8,2647.0,3.2078]
[1729585398729,0.37791,2647.6,2647.3,0.37795]
[1729585398935,0.37792,2647.5,2647.2,0.37796]
[1729585402236,0.18770504,2648.0,2646.9,2.36]
[1729585402436,0.18770504,2648.0,2646.4,0.98952994]
[1729585402437,3.2078,2647.9,2647.3,3.2078]
[1729585402746,0.37791,2647.6,2647.3,3.58574]
[1729585403457,3.2078,2647.9,2647.7,0.37788]
[1729585403742,0.37784,2648.1,2647.8,0.37787]
[1729585404040,3.2078,2648.3,2647.6,3.2078]
[1729585404238,3.2078,2648.3,2647.6,3.5857]
[1729585404239,0.37786,2647.9,2647.6,3.5857]
[1729585405741,0.37786,2647.9,2647.7,0.37789]
[1729585406240,2.36,2648.0,2647.3,0.37794]
[1729585406439,2.36,2648.0,2647.2,3.2078]
[1729585406440,0.37791,2647.6,2647.2,3.2078]
[1729585406636,0.37791,2647.6,2647.3,0.37795]
[1729585406837,0.37792,2647.5,2647.3,0.37795]
[1729585407038,0.37791,2647.6,2647.3,0.37795]
[1729585407238,2.36,2647.6,2646.9,3.2078]
[1729585407440,0.37791,2647.6,2647.4,0.37793]
[1729585408141,2.36,2648.0,2647.2,3.2078]
[1729585408346,0.37788,2647.8,2647.5,0.37791]
[1729585408648,0.37789,2647.8,2647.5,0.37791]
[1729585408837,3.2078,2648.1,2647.4,2.36]
[1729585409145,0.37787,2647.9,2647.6,0.3779]
[1729585409837,0.37784,2648.1,2647.8,0.37786]
[1729585410037,2.36,2648.2,2647.5,3.2078]
[1729585410237,0.37787,2647.9,2647.6,0.3779]
[1729585410436,0.37786,2648.0,2647.7,0.37788]
[1729585410844,2.36,2648.2,2647.7,0.37788]
[1729585411141,2.36,2647.8,2647.2,3.2078]
[1729585411348,0.37791,2647.6,2647.2,3.2078]
[1729585411845,2.36,2647.8,2647.2,3.2078]
[1729585412339,4.15242,2648.1,2647.5,0.37791]
[1729585412340,0.37789,2647.7,2647.5,0.37791]
[1729585412748,2.36,2648.0,2647.2,3.2078]
[1729585412943,0.37791,2647.6,2647.2,3.2078]
[1729585413138,2.36,2648.0,2647.2,3.2078]
[1729585413442,0.37793,2647.5,2647.3,0.37794]
[1729585413645,0.3779,2647.7,2647.5,0.37792]
[1729585413839,0.3779,2647.7,2647.2,3.2078]
[1729585413840,0.3779,2647.7,2647.4,0.37792]
[1729585414044,0.37791,2647.6,2647.4,0.37792]
[1729585414243,0.37791,2647.6,2647.5,3.2078]
[1729585415435,0.37791,2647.6,2647.4,0.37792]
[1729585416045,0.3779,2647.7,2647.5,0.37792]
[1729585416349,0.37791,2647.6,2647.4,0.37792]
[1729585417149,0.37791,2647.6,2647.4,3.58572]
[1729585418144,5.5678,2648.0,2647.4,3.2078]
[1729585418647,0.37789,2647.7,2647.5,0.37792]
[1729585418842,0.37789,2647.7,2647.5,0.37791]
[1729585419642,5.5678,2648.0,2647.5,0.37791]
[1729585419836,0.37789,2647.8,2647.5,0.37791]
[1729585420242,0.37789,2647.7,2647.5,0.37791]
[1729585420842,0.37789,2647.7,2647.4,3.58572]
[1729585421043,2.36,2648.0,2647.5,0.37791]
[1729585421747,2.36,2647.8,2647.4,3.58572]
[1729585422046,2.36,2647.8,2647.1,3.2078]
[1729585422047,2.36,2647.6,2647.1,3.2078]
[1729585422248,0.37796,2647.2,2647.1,3.2078]
[1729585422644,4.15556,2647.2,2647.1,3.2078]
[1729585422845,3.7776,2647.2,2646.7,3.2078]
[1729585423049,0.37796,2647.2,2646.7,3.2078]
[1729585423247,0.37796,2647.2,2646.9,0.378]
[1729585423547,2.36,2647.3,2646.8,0.37801]
[1729585423751,0.37798,2647.1,2646.8,0.37801]
[1729585424253,0.37797,2647.2,2646.8,0.37802]
[1729585424555,0.37798,2647.1,2646.8,0.37802]
[1729585424955,0.37797,2647.2,2646.8,0.37802]
[1729585425551,0.37798,2647.1,2646.8,0.37802]
[1729585425757,0.37798,2647.1,2646.7,3.58582]
[1729585425952,0.37798,2647.1,2646.8,0.37802]
[1729585426452,0.37798,2647.1,2646.7,3.2078]
[1729585426656,0.37799,2647.1,2646.7,3.58582]
[1729585426950,0.37799,2647.1,2646.8,0.37802]
[1729585427655,0.37797,2647.2,2646.9,0.378]
[1729585428553,0.37798,2647.1,2646.9,0.378]
[1729585429053,0.37798,2647.1,2646.8,0.37801]
[1729585429444,0.37797,2647.2,2646.9,0.378]
[1729585429846,4.3738,2647.5,2646.7,3.2078]
[1729585430054,0.37797,2647.2,2646.9,0.378]
[1729585430261,0.37798,2647.1,2646.9,0.378]
[1729585430648,0.37798,2647.1,2646.7,3.2078]
[1729585430849,0.378,2647.0,2646.7,3.2078]
[1729585431257,0.378,2646.9,2646.7,3.58583]
[1729585431656,0.378,2647.0,2646.7,3.58583]
[1729585433162,0.378,2647.0,2646.7,3.58582]
[1729585433462,2.36,2647.3,2646.7,3.2078]
[1729585433761,0.37799,2647.0,2646.7,3.58582]
[1729585436951,5.31863,2647.5,2646.7,3.2078]
[1729585436952,0.37802,2646.8,2646.7,3.2078]
[1729585438356,1.46802,2646.8,2646.7,3.2078]
[1729585438756,1.09,2646.8,2646.7,3.2078]
[1729585438955,1.46802,2646.8,2646.7,3.2078]
[1729585439254,0.18553974,2647.1,2646.7,3.2078]
[1729585439255,1.09,2646.9,2646.7,4.67583]
[1729585439558,1.468,2646.9,2646.7,4.67583]
[1729585440166,1.09,2647.0,2646.8,1.46801]
[1729585440559,0.37799,2647.0,2646.8,1.46801]
[1729585440762,1.09,2646.9,2646.8,1.46801]
[1729585441861,3.2078,2647.5,2647.0,0.37798]
[1729585441862,1.09,2647.1,2647.0,0.37798]
[1729585442372,0.37796,2647.2,2646.9,0.378]
[1729585442862,0.37797,2647.2,2646.9,0.378]
[1729585443064,3.482,2647.4,2646.9,0.378]
[1729585443367,0.37799,2647.1,2646.8,0.37801]
[1729585444253,0.37799,2647.0,2646.8,0.37801]
[1729585445461,0.37799,2647.0,2646.7,0.37802]
[1729585445865,0.37799,2647.0,2646.8,0.37802]
[1729585447063,0.37799,2647.1,2646.8,0.37802]
[1729585447263,0.37797,2647.1,2646.8,0.37802]
[1729585447653,0.37799,2647.0,2646.8,0.37802]
[1729585448061,2.36,2647.2,2646.8,0.37802]
[1729585448268,2.36,2647.2,2646.6,3.2078]
[1729585448269,0.37798,2647.1,2646.9,0.378]
[1729585448965,0.38985594,2647.5,2647.0,0.37799]
[1729585448966,0.37795,2647.3,2647.0,0.37799]
[1729585449367,0.37795,2647.3,2646.9,3.2078]
[1729585449671,0.37795,2647.3,2647.0,0.37798]
[1729585450768,0.37797,2647.2,2647.0,0.37798]
[1729585450971,0.37795,2647.3,2647.0,0.37798]
[1729585452671,0.37795,2647.3,2647.0,0.37799]
[1729585452874,0.37795,2647.3,2646.9,3.2078]
[1729585453372,0.37795,2647.3,2647.0,0.37798]
[1729585453767,2.36,2647.5,2647.1,0.37797]
[1729585454072,0.37795,2647.3,2647.1,0.37797]
[1729585455469,0.37793,2647.4,2647.0,0.37798]
[1729585455775,0.37798,2647.1,2646.9,3.2078]
[1729585456072,0.37798,2647.1,2646.9,3.5858]
[1729585456670,0.37799,2647.0,2646.9,3.2078]
[1729585458579,0.37799,2647.0,2646.9,3.5858]
[1729585458968,0.37799,2647.0,2646.9,3.2078]
[1729585459770,0.37804,2646.7,2646.6,3.58585]
[1729585459978,0.37804,2646.7,2646.6,3.2078]